bitfinex/quotes_ETHUSD_20240824
["timestamp","ask_amount","ask_price","bid_price","bid_amount"]
[1724507918185,2.27617901,2762.9,2762.8,2.4641]
[1724507918383,1.89722002,2762.9,2762.8,2.71107685]
[1724507918623,1.8972864,2763.0,2762.8,2.71107685]
[1724507918831,1.51785213,2762.9,2762.8,2.71107685]
[1724507921497,1.8972864,2763.0,2762.8,2.71107685]
[1724507922795,1.51796499,2762.9,2762.8,2.71107685]
[1724507923205,1.89743889,2763.0,2762.8,2.71107685]
[1724507923435,1.51796012,2762.9,2762.8,2.71107685]
[1724507923605,1.89743889,2763.0,2762.7,3.62522846]
[1724507923801,1.51795336,2762.8,2762.7,0.00566846]
[1724507929131,1.51795336,2762.8,2762.7,3.62530846]
[1724507934368,1.89758736,2762.9,2762.7,0.00566846]
[1724507934904,1.89758736,2762.8,2762.7,0.00566846]
[1724507935040,7.23868,2763.0,2762.7,0.00566846]
[1724507935219,1.89754597,2762.8,2762.7,0.00566846]
[1724507936229,1.89754597,2762.9,2762.7,0.00566846]
[1724507936941,1.89754597,2762.9,2762.8,3.61951]
[1724507937819,13.21632,2763.3,2762.8,3.61951]
[1724507938021,1.89768833,2762.9,2762.8,3.61951]
[1724507941445,5.89659349,2763.2,2762.8,3.61951]
[1724507941725,1.89798624,2762.9,2762.8,3.61951]
[1724507941925,1.89798624,2762.9,2762.7,6.01830846]
[1724507942211,1.51791137,2762.8,2762.7,6.01830846]
[1724507945082,1.51791137,2762.8,2762.7,7.28909371]
[1724507947686,1.51791137,2762.8,2762.7,6.01830846]
[1724507949170,1.51791137,2762.8,2762.7,3.62530846]
[1724507950482,1.51791137,2762.8,2762.7,5.96180846]
[1724507960333,1.89962027,2762.9,2762.7,5.96180846]
[1724507961220,1.89961885,2762.8,2762.7,5.96180846]
[1724507961410,1.89961885,2762.8,2762.7,7.04703583]
[1724507962745,1.89961885,2762.8,2762.7,8.31782108]
[1724507965717,1.89961885,2762.9,2762.8,7.23902]
[1724507965910,1.52103803,2762.9,2762.8,10.93320525]
[1724507966221,4.18610341,2763.6,2763.0,3.61925]
[1724507966222,1.90130698,2763.1,2763.0,3.61925]
[1724507966418,1.90130698,2763.1,2763.0,10.93268525]
[1724507967142,1.52103803,2763.4,2763.2,2.4234]
[1724507967360,1.52103803,2763.5,2763.4,3.61873]
[1724507967521,1.52103803,2763.5,2763.4,5.98269278]
[1724507967722,1.52103803,2763.6,2763.5,3.61859]
[1724507968451,1.52103803,2763.7,2763.5,3.61859]
[1724507968679,1.52103803,2763.7,2763.6,7.31264525]
[1724507968859,1.90130698,2763.9,2763.7,3.61833]
[1724507968860,1.52103803,2763.8,2763.7,3.61833]
[1724507969440,1.90130698,2763.9,2763.7,3.61833]
[1724507969441,1.52103803,2763.9,2763.7,3.61833]
[1724507970443,1.52103803,2764.0,2763.7,3.61833]
[1724507970771,1.52103803,2764.0,2763.6,3.69418525]
[1724507971066,1.52103803,2763.9,2763.6,3.69418525]
[1724507971373,1.52103803,2764.0,2763.6,3.69418525]
[1724507971830,1.52103803,2764.0,2763.7,3.61832]
[1724507972662,1.52103803,2764.1,2763.7,3.61832]
[1724507972873,1.52103803,2764.1,2763.8,1.27078525]
[1724507973075,1.52103803,2764.1,2763.8,4.88896525]
[1724507973447,1.52103803,2764.2,2763.8,4.88896525]
[1724507974772,5.13859803,2764.3,2763.8,4.88896525]
[1724507976175,3.90523803,2764.4,2763.8,4.88891525]
[1724507976544,1.52103803,2764.3,2763.8,3.61813]
[1724507977352,1.52103803,2764.4,2764.1,1.27078525]
[1724507977554,1.52103803,2764.6,2764.3,1.27078525]
[1724507977867,8.81103803,2764.8,2764.4,6.04081]
[1724507978071,7.29,2764.8,2764.4,3.61741]
[1724507978447,7.29,2764.8,2764.3,1.27078525]
[1724507978708,7.29,2764.8,2764.3,4.88829525]
[1724507979067,8.81103803,2764.8,2764.3,8.50577525]
[1724507979409,7.29,2764.8,2764.5,1.27078525]
[1724507981048,6.0013,2764.7,2763.9,3.61799]
[1724507981260,3.61744,2764.4,2763.9,3.61799]
[1724507981601,3.61737,2764.5,2763.8,7.31236525]
[1724507981602,3.61757,2764.3,2763.8,7.31236525]
[1724507981981,3.61757,2764.3,2763.8,2.4234]
[1724507982144,6.00177,2764.3,2763.7,3.61825]
[1724507982543,6.00177,2764.3,2763.6,1.27078525]
[1724507982807,6.00177,2764.3,2763.1,2.4234]
[1724507982808,1.27078525,2763.9,2763.1,2.4234]
[1724507983012,3.61866,2763.5,2762.9,12.21012525]
[1724507983791,3.61866,2763.5,2763.0,3.61922]
[1724507983991,3.61857,2763.6,2763.0,3.61917]
[1724507984206,3.61867,2763.5,2763.0,3.61917]
[1724507984387,3.61873,2763.4,2762.9,8.59078525]
[1724507984593,3.61893,2763.3,2762.9,7.32]
[1724507984848,3.61893,2763.3,2762.8,3.61944]
[1724507985118,3.61893,2763.3,2762.8,4.89022525]
[1724507985457,3.61866,2763.5,2763.0,3.61923]
[1724507986259,6.09297,2763.6,2763.0,7.23838]
[1724507986456,6.09297,2763.6,2763.1,3.61911]
[1724507986767,6.09297,2763.6,2763.0,3.61915]
[1724507987599,3.6186,2763.5,2763.0,3.61915]
[1724507987751,2.4745,2763.6,2763.0,7.23833]
[1724507987952,2.4745,2763.6,2763.0,3.61915]
[1724507988158,6.09307,2763.6,2763.0,3.61915]
[1724507989491,3.6186,2763.5,2763.0,3.61915]
[1724507989989,5.13937803,2763.7,2763.0,3.61915]
[1724507989990,5.13937803,2763.7,2763.1,6.00272]
[1724507990192,9.7645,2763.8,2763.2,3.61897]
[1724507990393,13.3827,2763.8,2763.2,7.23786]
[1724507990694,13.3827,2763.8,2763.2,3.61889]
[1724507991506,10.9082,2763.8,2763.2,3.61889]
[1724507991805,7.29,2763.8,2763.2,3.61889]
[1724507992275,7.29,2763.8,2763.0,4.343059]
[1724507992276,3.61847,2763.6,2763.0,3.61913]
[1724507992455,5.13936803,2763.7,2763.1,3.61905]
[1724507992705,12.42925803,2763.8,2763.2,3.61894]
[1724507993055,3.61838,2763.7,2763.2,3.61894]
[1724507993380,7.23681,2763.7,2763.2,3.61894]
[1724507994376,3.61838,2763.7,2763.2,3.61894]
[1724507995261,5.13941803,2763.7,2763.2,3.61894]
[1724507995691,3.61838,2763.7,2763.2,3.61894]
[1724507996430,5.13941803,2763.7,2763.2,3.61894]
[1724507996814,3.61838,2763.7,2763.2,3.61894]
[1724507996994,3.61838,2763.7,2763.2,5.95814]
[1724507997401,1.52103803,2763.8,2763.3,3.61884]
[1724507997818,1.52103803,2763.8,2763.5,3.61858]
[1724507998185,1.52103803,2763.8,2763.4,3.61871]
[1724507998330,1.52103803,2763.8,2763.4,7.23732]
[1724507998514,1.52103803,2763.8,2763.4,3.61861]
[1724507998698,4.52103803,2763.9,2763.4,4.3101642]
[1724507998914,1.52103803,2763.9,2763.4,4.3101642]
[1724507999131,8.75703803,2764.0,2763.4,4.3101642]
[1724507999328,1.52103803,2764.0,2763.5,2.3392]
[1724507999625,5.13877803,2764.2,2763.6,3.61838]
[1724508000624,3.61783,2764.1,2763.6,4.64515942]
[1724508001057,3.61783,2764.1,2763.6,8.26354942]
[1724508001257,3.61783,2764.1,2763.6,4.64515942]
[1724508001418,3.61783,2764.1,2763.6,3.61838]
[1724508001789,3.61783,2764.1,2763.5,2.3392]
[1724508002129,3.61794,2764.0,2763.5,2.3392]
[1724508002332,3.61794,2764.0,2763.5,5.95777]
[1724508002537,3.61814,2763.9,2763.2,5.9581]
[1724508002875,3.61814,2763.9,2762.7,3.62526846]
[1724508002876,3.61884,2763.4,2762.7,0.00566846]
[1724508002942,3.61884,2763.4,2762.7,3.62522846]
[1724508002943,3.61893,2763.3,2762.7,3.62522846]
[1724508003113,5.13976803,2763.4,2762.7,0.00566846]
[1724508003444,3.61886,2763.3,2762.8,3.61949]
[1724508003733,3.619,2763.2,2762.7,4.22168031]
[1724508003936,3.619,2763.2,2762.7,0.00566846]
[1724508004301,3.61649279,2763.2,2762.7,3.62529846]
[1724508004639,3.61649279,2763.2,2762.7,0.00566846]
[1724508004799,3.61649279,2763.2,2762.7,3.62527846]
[1724508005729,5.13753082,2763.2,2762.7,3.62527846]
[1724508006039,5.13991803,2763.3,2762.7,3.62527846]
[1724508006263,1.52103803,2763.2,2762.7,3.62527846]
[1724508006630,3.61927,2763.0,2762.7,0.00566846]
[1724508008010,4.92389736,2763.0,2762.7,0.00566846]
[1724508008061,3.61951,2762.8,2762.7,0.00566846]
[1724508008742,3.61938,2762.9,2762.7,0.00566846]
[1724508009524,6.44497539,2763.0,2762.7,0.00566846]
[1724508009843,1.52103803,2763.1,2762.7,2.39776846]
[1724508010057,1.52103803,2763.2,2762.7,6.01738846]
[1724508010260,1.52103803,2763.2,2762.7,2.39776846]
[1724508010771,5.14011803,2763.2,2762.7,6.01739846]
[1724508010976,1.52103803,2763.2,2762.7,6.01739846]
[1724508011472,1.52103803,2763.3,2763.0,3.61916]
[1724508011639,5.13964803,2763.5,2763.0,3.61916]
[1724508013233,8.75832803,2763.5,2762.9,3.61938]
[1724508013462,3.61861,2763.5,2762.9,3.61938]
[1724508013830,5.13964803,2763.5,2763.0,3.61921]
[1724508014025,7.2373,2763.5,2763.1,2.754021]
[1724508014368,3.61861,2763.5,2763.1,2.3921]
[1724508014535,1.52103803,2763.6,2763.1,2.3921]
[1724508014739,3.61862,2763.5,2763.1,2.3921]
[1724508014966,1.52103803,2763.4,2762.8,6.01161]
[1724508015165,1.52103803,2763.4,2762.8,7.07167953]
[1724508015528,3.61888,2763.3,2762.8,7.07167953]
[1724508016481,3.61891,2763.3,2762.7,0.00566846]
[1724508016643,7.23841,2763.1,2762.7,0.00566846]
[1724508016971,3.61929,2763.0,2762.7,0.00566846]
[1724508017340,3.6192,2763.1,2762.7,0.00566846]
[1724508017579,7.23841,2763.1,2762.7,0.00566846]
[1724508017769,5.14023803,2763.1,2762.7,0.00566846]
[1724508017984,8.75944803,2763.1,2762.7,0.00566846]
[1724508018130,5.14023803,2763.1,2762.7,0.00566846]
[1724508018969,8.75944803,2763.1,2762.7,0.00566846]
[1724508019189,3.6192,2763.1,2762.7,0.00566846]
[1724508021169,7.23841,2763.1,2762.7,0.00566846]
[1724508021377,3.6192,2763.1,2762.7,0.00566846]
[1724508021553,7.23841,2763.1,2762.7,0.00566846]
[1724508022236,3.61951,2762.8,2762.7,0.00566846]
[1724508022794,7.23902,2762.8,2762.7,0.00566846]
[1724508023355,8.76005803,2762.8,2762.7,0.00566846]
[1724508024292,11.75099749,2762.8,2762.7,0.00566846]
[1724508024575,12.12935382,2762.8,2762.7,0.00566846]
[1724508024795,13.00100222,2762.8,2762.7,0.00566846]
[1724508024949,11.1106684,2762.8,2762.7,0.00566846]
[1724508025438,13.00132066,2762.8,2762.7,0.00566846]
[1724508027591,11.1106684,2762.8,2762.7,0.00566846]
[1724508029784,13.00302904,2762.8,2762.7,0.00566846]
[1724508030960,11.1106684,2762.8,2762.7,0.00566846]
[1724508031178,13.00287045,2762.8,2762.7,0.00566846]
[1724508034555,11.1106684,2762.8,2762.7,0.00566846]
[1724508035156,12.62352755,2762.8,2762.7,0.00566846]
[1724508035961,11.1106684,2762.8,2762.7,0.00566846]
[1724508036366,6.61951,2762.8,2762.7,0.00566846]
[1724508036690,4.51277647,2762.8,2762.7,0.00566846]
[1724508037589,5.13228647,2762.8,2762.7,0.00566846]
[1724508037962,3.61951,2762.8,2762.7,0.00566846]
[1724508038897,7.23902,2762.8,2762.7,0.00566846]
[1724508039071,9.81619632,2762.8,2762.7,0.00566846]
[1724508039992,9.81631262,2762.8,2762.7,0.00566846]
[1724508041459,8.30341985,2762.8,2762.7,0.00566846]
[1724508042224,10.19460147,2762.8,2762.7,0.00566846]
[1724508045465,8.30341985,2762.8,2762.7,0.00566846]
[1724508045620,11.30341985,2762.8,2762.7,0.00566846]
[1724508048163,13.5741065,2762.8,2762.7,0.00566846]
[1724508049796,11.30341985,2762.8,2762.7,0.00566846]
[1724508052952,13.57648546,2762.8,2762.7,0.00566846]
[1724508053766,11.30341985,2762.8,2762.7,0.00566846]
[1724508054183,13.57648718,2762.8,2762.7,0.00566846]
[1724508054555,11.30341985,2762.8,2762.7,0.00566846]
[1724508055282,10.23902,2762.8,2762.7,0.00566846]
[1724508060512,11.5090658,2762.8,2762.7,0.00566846]
[1724508061816,21.69243796,2762.8,2762.7,0.00566846]
[1724508062116,24.29228004,2762.8,2762.7,0.00566846]
[1724508062597,22.93840275,2762.8,2762.7,0.00566846]
[1724508063078,19.31889275,2762.8,2762.7,0.00566846]
[1724508067273,10.23902,2762.8,2762.7,0.00566846]
[1724508067432,7.23902,2762.8,2762.7,0.00566846]
[1724508067732,3.61951,2762.8,2762.7,2.27516846]
[1724508069585,3.61939,2762.9,2762.7,2.27516846]
[1724508070056,7.23888,2762.9,2762.7,2.27516846]
[1724508070339,3.61951,2762.8,2762.7,2.27516846]
[1724508071475,8.22837421,2762.8,2762.7,0.00566846]
[1724508072152,7.23902,2762.8,2762.7,2.27516846]
[1724508077069,9.51434024,2762.8,2762.7,2.27516846]
[1724508077299,5.89483024,2762.8,2762.7,2.27516846]
[1724508077558,5.89496086,2762.8,2762.7,2.27516846]
[1724508080574,5.89476057,2762.8,2762.7,2.27516846]
[1724508080855,2.27525057,2762.8,2762.7,2.27516846]
[1724508081066,2.27525057,2762.9,2762.8,2.2695]
[1724508081300,2.27525057,2763.1,2762.8,2.2695]
[1724508081694,1.51695859,2762.9,2762.8,2.2695]
[1724508081980,1.51695859,2762.9,2762.8,6.47837385]
[1724508082297,1.51695859,2762.9,2762.8,2.85898385]
[1724508083505,1.51695859,2763.0,2762.9,2.2695]
[1724508084394,1.51695859,2763.0,2762.7,0.00566846]
[1724508084395,1.51695859,2763.2,2763.0,3.61925]
[1724508084498,3.41253803,2763.3,2763.2,2.4861]
[1724508084799,1.89557944,2763.3,2763.2,3.45854]
[1724508084996,3.41204108,2763.3,2763.2,3.45854]
[1724508085204,1.51646164,2763.3,2763.2,3.45854]
[1724508086129,1.51646164,2763.4,2763.3,3.61886]
[1724508086399,1.51646164,2763.5,2763.3,1.07688867]
[1724508087305,1.51646164,2763.5,2763.3,4.69574867]
[1724508087669,1.51646164,2763.5,2763.3,1.07688867]
[1724508087864,1.51646164,2763.4,2763.0,2.4861]
[1724508088071,3.61912,2763.1,2763.0,2.4861]
[1724508088466,3.61938,2762.9,2762.7,0.00566846]
[1724508088876,5.13584164,2762.9,2762.7,0.00566846]
[1724508090885,1.51646164,2762.9,2762.7,0.00566846]
[1724508095372,5.13584164,2762.9,2762.7,0.00566846]
[1724508096068,5.13597164,2762.8,2762.7,0.00566846]
[1724508096987,3.61951,2762.8,2762.7,0.00566846]
[1724508097271,5.13597164,2762.8,2762.7,0.00566846]
[1724508097475,1.51646164,2762.8,2762.7,0.00566846]
[1724508097634,1.51646164,2762.9,2762.7,0.00566846]
[1724508098476,1.51646164,2762.9,2762.7,3.62530846]
[1724508098847,1.51646164,2762.9,2762.8,2.4861]
[1724508099090,1.51646164,2763.1,2762.8,2.4861]
[1724508099770,1.51646164,2763.0,2762.8,2.4861]
[1724508100339,1.51646164,2763.0,2762.8,6.10561]
[1724508100548,1.51646164,2763.0,2762.8,2.4861]
[1724508100752,1.51646164,2763.0,2762.8,3.15834793]
[1724508102694,1.51646164,2763.1,2762.8,3.15834793]
[1724508103085,1.51646164,2763.1,2762.8,2.4861]
[1724508104461,1.51646164,2763.0,2762.8,2.4861]
[1724508105295,1.51646164,2763.1,2762.8,2.4861]
[1724508105464,1.51646164,2763.0,2762.8,2.4861]
[1724508110522,1.51646164,2763.0,2762.8,2.4861]
[1724508110727,1.51646164,2763.0,2762.8,3.15780108]
[1724508111323,1.51646164,2762.9,2762.8,3.15780108]
[1724508114209,1.89517104,2763.0,2762.8,2.4861]
[1724508114505,1.51671962,2762.9,2762.8,2.4861]
[1724508118369,1.89608551,2763.0,2762.8,2.4861]
[1724508119658,1.51732029,2762.9,2762.8,2.4861]
[1724508119972,3.61984,2762.6,2762.1,6.10234]
[1724508120116,1.51708578,2762.4,2762.1,2.482]
[1724508120686,1.51708578,2762.2,2761.6,6.10308]
[1724508120834,1.51697801,2762.0,2761.6,6.10308]
[1724508121042,1.51697801,2762.0,2761.3,2.482]
[1724508121043,1.51697801,2761.9,2761.3,2.482]
[1724508121266,3.62095,2761.7,2761.3,2.482]
[1724508121566,3.62113,2761.6,2761.3,2.482]
[1724508122119,7.24231,2761.6,2761.0,2.482]
[1724508122332,3.62113,2761.6,2761.0,7.57322392]
[1724508122518,5.13810801,2761.6,2761.0,7.57322392]
[1724508122717,5.13810801,2761.6,2761.0,6.10387]
[1724508123027,5.13810801,2761.6,2761.0,6.1038]
[1724508123028,3.62113,2761.6,2761.0,6.1038]
[1724508123249,3.62113,2761.6,2761.0,9.7256]
[1724508123450,7.2423,2761.6,2761.0,6.1038]
[1724508123648,3.62113,2761.6,2761.0,6.1038]
[1724508123870,3.62123,2761.5,2761.0,2.482]
[1724508124558,3.62135,2761.4,2761.0,2.482]
[1724508126155,7.24232,2761.6,2761.0,2.482]
[1724508126354,7.24232,2761.6,2761.0,3.454591]
[1724508127780,3.62122,2761.5,2761.0,3.454591]
[1724508127975,3.62113,2761.6,2761.0,7.076441]
[1724508128141,7.24233,2761.6,2761.0,7.076441]
[1724508128473,3.62113,2761.6,2761.0,3.454591]
[1724508128678,3.62113,2761.6,2761.0,2.482]
[1724508129185,3.62142,2761.4,2761.0,2.482]
[1724508131804,7.24231,2761.6,2761.0,6.10386]
[1724508132313,3.62123,2761.5,2761.0,6.10386]
[1724508132513,3.62123,2761.5,2761.0,7.076437]
[1724508135796,3.62135,2761.4,2761.0,3.454577]
[1724508136020,3.62155,2761.3,2761.0,2.482]
[1724508136188,3.62135,2761.4,2761.0,2.482]
[1724508136533,3.62162,2761.2,2760.7,5.95482]
[1724508136683,7.24333,2761.2,2760.7,7.644553]
[1724508136882,3.62162,2761.2,2760.7,7.644553]
[1724508139073,3.62143,2761.4,2760.8,3.62213]
[1724508139362,7.2429,2761.4,2760.8,3.62213]
[1724508139529,3.6215,2761.3,2760.8,3.62213]
[1724508139730,3.6215,2761.3,2760.8,4.33472962]
[1724508141467,3.62123,2761.5,2760.8,4.33472962]
[1724508141679,3.62135,2761.4,2760.8,4.33472962]
[1724508141838,3.62135,2761.4,2760.8,7.95674962]
[1724508142040,7.24277,2761.4,2760.8,7.95674962]
[1724508142425,7.24277,2761.4,2760.8,4.33461962]
[1724508142886,7.24337,2761.2,2760.7,2.3326]
[1724508143031,3.62168,2761.2,2760.7,5.95485]
[1724508143949,3.62176,2761.1,2760.7,2.3326]
[1724508144365,3.62189,2761.0,2760.7,2.3326]
[1724508144681,4.89340912,2761.0,2760.7,2.3326]
[1724508144966,8.51538912,2761.0,2760.5,2.2841]
[1724508145165,1.27151912,2760.8,2760.5,2.2841]
[1724508145326,4.89365912,2760.8,2760.3,3.62278]
[1724508145525,1.27151912,2760.8,2760.3,3.6227]
[1724508146464,3.62214,2760.8,2760.3,3.6227]
[1724508147070,7.24386,2761.0,2760.3,7.24538]
[1724508147291,3.62201,2760.9,2760.3,3.62268]
[1724508147485,3.62201,2760.9,2760.3,5.307656]
[1724508148100,3.62215,2760.8,2760.3,5.307656]
[1724508149298,7.24437,2760.8,2760.3,1.684976]
[1724508150085,3.62229,2760.7,2760.3,1.684976]
[1724508151668,3.6224,2760.6,2760.3,1.684976]
[1724508151983,3.6224,2760.6,2760.2,9.6041]
[1724508152481,7.24438,2760.8,2760.2,9.6041]
[1724508152679,7.24438,2760.8,2760.2,13.22701]
[1724508152680,3.62227,2760.7,2760.2,13.22701]
[1724508153656,3.62196,2761.0,2760.4,3.62253]
[1724508153795,3.62196,2761.0,2760.5,2.874763]
[1724508154508,7.24392,2761.0,2760.5,2.874763]
[1724508154727,3.62196,2761.0,2760.5,2.874763]
[1724508154914,3.62196,2761.0,2760.5,6.497293]
[1724508156241,3.62196,2761.0,2760.5,10.119823]
[1724508156448,3.62196,2761.0,2760.5,6.497293]
[1724508156747,7.24391,2761.0,2760.5,6.497293]
[1724508156928,3.62195,2761.0,2760.5,6.497293]
[1724508157284,3.62195,2761.0,2760.7,2.45]
[1724508159825,7.2439,2761.0,2760.7,2.45]
[1724508160056,3.62202,2760.9,2760.7,2.45]
[1724508160563,3.62195,2761.0,2760.7,2.45]
[1724508160959,7.24393,2761.0,2760.7,2.45]
[1724508161349,3.62195,2761.0,2760.7,2.45]
[1724508162972,3.62201,2760.9,2760.7,2.45]
[1724508163175,3.0,2761.2,2760.7,2.45]
[1724508163503,3.0,2761.2,2760.7,6.07215]
[1724508163632,6.62169,2761.2,2760.7,2.45]
[1724508163835,3.62177,2761.1,2760.7,2.45]
[1724508164276,3.62208,2760.9,2760.7,2.45]
[1724508164666,3.62213,2760.8,2760.7,2.45]
[1724508165564,3.62213,2760.8,2760.4,2.4603]
[1724508165730,5.12958464,2760.8,2760.4,4.16289]
[1724508166286,3.62213,2760.8,2760.4,4.16289]
[1724508166777,5.12953464,2760.9,2760.4,4.16289]
[1724508166963,5.12953464,2760.9,2760.4,7.78552]
[1724508167161,8.75164464,2760.9,2760.4,7.78552]
[1724508167329,8.75163464,2760.9,2760.4,7.78552]
[1724508167532,8.75163464,2760.9,2760.5,0.778552]
[1724508167961,8.75161464,2760.9,2760.5,0.778552]
[1724508168605,3.62229,2760.7,2760.4,4.16289]
[1724508168806,3.62243,2760.6,2760.4,2.4603]
[1724508169816,7.24494,2760.6,2760.4,2.4603]
[1724508170381,3.62253,2760.5,2760.2,9.7803]
[1724508173225,1.50745464,2760.6,2760.2,9.7803]
[1724508173629,1.50745464,2760.6,2760.2,2.4603]
[1724508174206,1.50745464,2760.6,2760.2,6.08318]
[1724508174412,1.50745464,2760.6,2760.3,0.608318]
[1724508174619,1.50745464,2760.6,2760.2,6.08318]
[1724508177375,1.50745464,2760.6,2760.2,9.70603]
[1724508177683,1.50745464,2760.6,2760.5,3.62253]
[1724508177831,1.50745464,2760.8,2760.7,3.62226]
[1724508178174,9.56472341,2761.2,2760.7,4.592756]
[1724508178175,1.50745464,2761.0,2760.7,4.592756]
[1724508178358,1.50745464,2761.0,2760.7,3.62226]
[1724508178685,1.50745464,2760.9,2760.7,3.62226]
[1724508179049,1.50745464,2761.0,2760.7,3.62226]
[1724508179264,1.50745464,2760.9,2760.7,3.62226]
[1724508179460,1.50745464,2760.9,2760.6,3.62239]
[1724508179772,1.50745464,2760.7,2760.4,9.70542]
[1724508180000,4.89393224,2760.6,2760.1,2.4603]
[1724508180310,1.50745464,2760.5,2760.1,2.4603]
[1724508180452,1.50745464,2760.5,2760.1,6.08334]
[1724508181393,5.51898949,2760.6,2760.1,6.08334]
[1724508181394,1.50745464,2760.4,2760.1,6.08334]
[1724508181695,1.50745464,2760.5,2760.1,7.053981]
[1724508182306,1.50745464,2760.5,2760.2,3.6229]
[1724508184564,1.50745464,2760.5,2760.1,3.430941]
[1724508184565,1.50745464,2760.4,2760.1,2.4603]
[1724508184769,5.13012464,2760.4,2760.1,2.4603]
[1724508185796,1.50745464,2760.5,2760.2,3.62285]
[1724508185998,1.50745464,2760.5,2760.1,6.691649]
[1724508186297,1.50745464,2760.5,2760.2,3.62283]
[1724508187953,1.50745464,2760.5,2760.4,3.62266]
[1724508189061,1.50745464,2760.5,2760.3,3.62269]
[1724508189356,1.50745464,2760.5,2760.1,6.691629]
[1724508189590,1.50745464,2760.4,2760.1,6.691629]
[1724508189790,1.50745464,2760.4,2760.2,3.6229]
[1724508191102,1.50745464,2760.5,2760.2,3.6229]
[1724508191658,1.50745464,2760.5,2760.3,3.62279]
[1724508191885,1.50745464,2760.4,2760.3,3.62279]
[1724508192308,1.50745464,2760.4,2760.2,3.62292]
[1724508192600,1.50745464,2760.4,2760.2,4.6543869]
[1724508194657,1.50745464,2760.4,2760.2,4.6543169]
[1724508194993,1.50745464,2760.4,2760.3,3.62279]
[1724508195176,1.50745464,2760.5,2760.3,3.62279]
[1724508195503,1.50745464,2760.5,2760.4,9.67312]
[1724508195708,1.50745464,2760.8,2760.7,2.4278]
[1724508196455,1.50745464,2760.9,2760.7,2.4278]
[1724508196702,1.50745464,2760.8,2760.7,2.4278]
[1724508204135,1.50745464,2760.8,2760.7,10.277339]
[1724508204349,1.50745464,2760.9,2760.8,7.24426]
[1724508204655,8.63715088,2761.5,2760.9,3.62192]
[1724508204656,1.50745464,2761.1,2760.9,3.62192]
[1724508205204,1.50745464,2761.1,2760.9,0.6654739]
[1724508205455,1.50745464,2761.1,2760.7,10.277279]
[1724508205456,1.50745464,2761.1,2760.8,3.62209]
[1724508205811,1.50745464,2761.0,2760.8,3.62209]
[1724508206006,1.50745464,2761.1,2760.8,3.62209]
[1724508206430,1.50745464,2761.0,2760.8,3.62209]
[1724508208138,1.50745464,2761.0,2760.7,2.4278]
[1724508208337,1.50745464,2761.0,2760.6,3.62228]
[1724508208338,1.50745464,2760.9,2760.6,3.62228]
[1724508208826,5.12933464,2761.0,2760.6,3.62228]
[1724508209653,1.50745464,2761.0,2760.6,3.62228]
[1724508210351,1.50745464,2760.9,2760.6,3.62228]
[1724508210555,1.50745464,2760.9,2760.6,4.575199]
[1724508210759,1.50745464,2761.0,2760.6,4.575199]
[1724508210954,1.50745464,2760.9,2760.6,4.575199]
[1724508212372,1.50745464,2760.9,2760.7,3.62223]
[1724508212677,1.50745464,2761.0,2760.7,3.62223]
[1724508213327,1.50745464,2761.0,2760.8,3.62212]
[1724508214510,1.50745464,2761.1,2761.0,3.62187]
[1724508214851,10.94393,2761.6,2760.9,6.08059]
[1724508214852,1.50745464,2761.3,2761.1,3.62174]
[1724508215052,1.50745464,2761.4,2761.3,6.08018]
[1724508215652,1.50745464,2761.4,2761.3,2.4587]
[1724508215893,1.50745464,2761.4,2761.1,3.62167]
[1724508216377,1.50745464,2761.3,2761.0,2.4587]
[1724508216592,1.50745464,2761.3,2760.8,9.7787]
[1724508216862,1.89697289,2761.4,2760.8,9.7787]
[1724508216863,1.50745464,2761.1,2760.8,7.32]
[1724508217556,1.50745464,2761.1,2760.9,3.62198]
[1724508218266,1.50745464,2761.1,2760.9,3.62193]
[1724508219202,1.50745464,2761.2,2760.9,3.62193]
[1724508220563,1.50745464,2761.1,2760.9,3.62193]
[1724508222511,1.50745464,2761.2,2760.9,3.62193]
[1724508223167,1.50745464,2761.1,2760.9,3.62193]
[1724508223525,1.50745464,2761.2,2760.9,3.62193]
[1724508223662,1.50745464,2761.1,2760.9,3.62193]
[1724508223861,1.50745464,2761.2,2760.9,3.62193]
[1724508224466,1.50745464,2761.2,2760.9,7.24386]
[1724508224666,1.50745464,2761.2,2760.9,5.95933]
[1724508225792,5.12908464,2761.2,2760.7,5.9596]
[1724508225994,1.50745464,2761.1,2760.7,3.6222]
[1724508226318,7.43538464,2761.2,2760.7,3.6222]
[1724508226479,1.50745464,2761.1,2760.7,3.6222]
[1724508228682,5.12933464,2761.0,2760.5,2.3374]
[1724508228920,5.12955464,2760.9,2760.5,2.3374]
[1724508229325,8.75165464,2760.9,2760.5,2.3374]
[1724508229606,5.12955464,2760.9,2760.5,2.3374]
[1724508230671,1.50745464,2760.9,2760.5,5.95989]
[1724508231588,1.50745464,2760.8,2760.5,5.95989]
[1724508231774,1.50745464,2760.9,2760.5,5.95989]
[1724508232366,1.50745464,2760.8,2760.5,5.95989]
[1724508232573,1.50745464,2760.9,2760.5,7.03159266]
[1724508235403,1.50745464,2760.8,2760.5,7.03159266]
[1724508240863,5.12980464,2760.7,2760.3,2.4828]
[1724508241502,1.50745464,2760.7,2760.3,6.10558]
[1724508242110,1.50745464,2760.7,2760.4,3.62264]
[1724508247206,1.50745464,2760.6,2760.4,3.62264]
[1724508248415,1.50745464,2760.6,2760.5,0.610544]
[1724508248604,1.89818506,2760.7,2760.4,3.62264]
[1724508248807,1.51839586,2760.5,2760.4,3.62264]
[1724508250212,1.51839586,2760.6,2760.5,3.62253]
[1724508250529,1.51839586,2760.6,2760.5,10.666857]
[1724508252263,1.51839586,2760.6,2760.5,7.044327]
[1724508252925,1.51839586,2760.6,2760.5,0.972797]
[1724508253126,1.51839586,2760.6,2760.3,6.0717]
[1724508253513,1.51839586,2760.6,2760.2,7.45]
[1724508253842,5.14080586,2760.6,2760.2,7.45]
[1724508254018,1.51839586,2760.6,2760.2,7.45]
[1724508254453,5.14079586,2760.6,2760.2,7.45]
[1724508255345,5.14079586,2760.6,2760.2,11.07291]
[1724508256667,1.51839586,2760.7,2760.2,11.07291]
[1724508256852,1.51839586,2760.6,2760.2,3.62291]
[1724508257839,5.14066586,2760.7,2760.2,3.62285]
[1724508260147,1.51839586,2760.6,2760.2,3.62285]